Cogmind - Beta 16 @@@ ROGUE MODE // 2026.01.24 @ 12:10:14 Player: Singularius Result: Destroyed by YI-UF0 with YI-UF0's Doublenader Performance ------------- Evolutions (0) 0 Regions Visited (2) 400 Robots Destroyed (15) 75 Value Destroyed (368) 368 Prototype IDs (2) 40 Alien Tech Used (0) 0 Bonus (0) 0 TOTAL SCORE: 883 Bonus ------- None Cogmind --------- Core Integrity 0/250 Matter 215/300 Energy 100/100 System Corruption 0% Temperature Cool (0) Movement Walking (260) Ox2 Location -10/Mines Parts ------- > --- POWER (1) -------- (None) > --- PROPULSION (2) --- Aluminum Leg > --- UTILITY (2) ------ Large Storage Unit > --- WEAPON (2) ------- Autogun > --- INVENTORY (15) --- Light Ion Engine Aluminum Leg Aluminum Leg Improved Aluminum Leg Improved Aluminum Leg Improved Aluminum Leg Improved Aluminum Leg Improved Heat Sink Improved Terrain Scanner Seismic Detector Heavy Assault Rifle Heavy Assault Rifle Grenade Launcher Peak State ------------ > --- POWER ------------ Ion Engine > --- PROPULSION ------- Light Treads Light Treads > --- UTILITY ---------- Large Storage Unit Improved Terrain Scanner > --- WEAPON ----------- Autogun Autogun > --- INVENTORY -------- Light Ion Engine Aluminum Leg Aluminum Leg Improved Aluminum Leg Improved Aluminum Leg Improved Aluminum Leg Improved Aluminum Leg Beam Cannon Heavy Assault Rifle Heavy Assault Rifle Autogun Autogun [Rating: 13] Favorites ----------- Power Ion Engine Engine Ion Engine Propulsion Light Treads Treads Light Treads Leg Aluminum Leg Utility Large Storage Unit Device Seismic Detector Storage Large Storage Unit Protection Light Armor Plating Weapon Autogun Energy Gun Medium Laser Ballistic Gun Autogun Build | -11 -10 -10 ------- Run | Yrd Mat Min Slots Evolved . | . . . Power . | . . . Propulsion . | . . . Utility . | . . . Weapon . | . . . Parts Attached 17 | 7 8 2 Power 1 | 1 . . Engine 1 | 1 . . Core . | . . . Reactor . | . . . Propulsion 4 | 2 2 . Treads 2 | 2 . . Leg 2 | . 2 . Wheel . | . . . Hover . | . . . Flight . | . . . Utility 5 | 2 3 . Device 2 | 1 1 . Storage 2 | 1 1 . Processor . | . . . Hackware . | . . . Protection 1 | . 1 . Artifact . | . . . Weapon 7 | 2 3 2 Energy Gun 1 | 1 . . Energy Cannon . | . . . Ballistic Gun 6 | 1 3 2 Ballistic Cannon . | . . . Launcher . | . . . Special Weapon . | . . . Impact Weapon . | . . . Slashing Weapon . | . . . Piercing Weapon . | . . . Special Melee Weapon . | . . . Unidentified Prototypes . | . . . Parts Lost 6 | . . 6 Power 1 | . . 1 Propulsion 1 | . . 1 Utility 1 | . . 1 Weapon 3 | . . 3 Highest Loss Streak 6 | . . 6 To Critical Strikes . | . . . Average Backups 12 | 2 11 14 Power . | . 1 1 Propulsion 4 | 1 4 6 Utility 1 | . . 3 Weapon 4 | . 4 4 Tool/Special . | . . . Unused Backups 15 | . 5 10 Power 1 | . . 1 Propulsion 6 | . . 6 Utility 1 | . . 1 Weapon 7 | . 5 2 Tool/Special . | . . . Average Slot Usage (%) 99 | . 100 99 Engine 14 | . 14 14 Treads 17 | . 26 . Leg 10 | . 1 27 Device 13 | . 12 13 Storage 14 | . 14 14 Energy Gun 2 | . 3 . Ballistic Gun 25 | . 24 28 Peak Build Rating 13 | 9 13 11 Average Rating 10 | 5 11 10 On Entrance 6 | . 9 11 Avg Prop Armor Cover (%) 8 | . 8 . Naked Turns . | . . . Heaviest Build 34 | 14 34 32 Greatest Support 40 | 40 40 20 Greatest Overweight (x) 3 | . 3 1 Average Overweight (x) . | . . 1 Largest Inventory Capacity 15 | 8 15 15 Average Capacity 13 | 7 12 15 Most Carried 15 | 4 15 15 Average Carried 12 | 3 11 14 Final Capacity 15 | 8 15 15 Final Carried 15 | 4 15 13 Class Distribution -------------------- 100% | Mutant Dominant Class ---------------- Mutant | -10/Materials Mutant | -10/Mines Resources | -11 -10 -10 ----------- Run | Yrd Mat Min Matter Collected 613 | 222 371 20 Remotely . | . . . Salvage Created 511 | 49 462 . Parts 28 | 5 23 . Haulers Intercepted . | . . . Recyclers Shooed . | . . . Parts Field Recycled . | . . . Retrieved Matter . | . . . Parts Self-Destructed . | . . . Prevented . | . . . Parts Restored . | . . . Kills | -11 -10 -10 ------- Run | Yrd Mat Min Combat Hostiles Destroyed 11 | . 11 . Guns 11 | . 11 . Classes Destroyed 4 | 1 3 . Tunneler 3 | 3 . . Recycler 1 | . 1 . Swarmer 3 | . 3 . Grunt 8 | . 8 . Best Kill Streak 4 | 3 4 . Combat Bots Only 4 | . 4 . Max Kills in Single Turn 1 | 1 1 . Gunslinging . | . . . Exploded . | . . . Melee . | . . . Uniques/NPCs Destroyed . | . . . Combat | -11 -10 -10 -------- Run | Yrd Mat Min Hostile Shots Fired 79 | . 51 28 Missed 21 | . 11 10 Hits 58 | . 40 18 Projectile 58 | . 40 18 AOE 23 | . . 23 Critical Strikes 1 | . 1 . Damage Taken 1213 | . 525 688 Core 258 | . 105 153 Absorbed by Shields . | . . . Core Remaining (%) 100 | 100 . . Volleys Fired 53 | 8 35 10 Largest 2 | 2 2 2 Hottest 70 | 70 70 46 Shots Fired 106 | 16 70 20 Gun 106 | 16 70 20 Cannon . | . . . Launcher . | . . . Special . | . . . Kinetic 93 | 8 65 20 Thermal 13 | 8 5 . Explosive . | . . . Electromagnetic . | . . . Robot Hit Streak 13 | 4 13 3 Robot Miss Streak 3 | 3 2 2 Penetration Max . | . . . Secondary Targets 2 | . 2 . Max Gunslinging Chain 1 | . 1 . Shots Hit Robots 70 | 9 50 11 Core Hits 27 | 3 22 2 Critical Kills . | . . . Critical Parts Destroyed . | . . . Critical Strikes . | . . . Melee Attacks . | . . . Impact . | . . . Slashing . | . . . Piercing . | . . . Sneak Attacks . | . . . Combat Hostiles . | . . . Follow-up Attacks . | . . . Damage Inflicted 1005 | 95 733 177 Guns 1005 | 95 733 177 Cannons . | . . . Explosions . | . . . Melee . | . . . Ramming . | . . . Kinetic 907 | 33 697 177 Thermal 98 | 62 36 . Explosive . | . . . Electromagnetic . | . . . Impact . | . . . Slashing . | . . . Piercing . | . . . Highest Corruption . | . . . Average Corruption . | . . . Corruption Purged . | . . . Corruption Blocked . | . . . Overload Shots . | . . . Overflow Damage . | . . . Projectiles . | . . . Explosions . | . . . Melee . | . . . Knockbacks . | . . . Impact . | . . . Kinetic . | . . . Secondary . | . . . Self-Inflicted Damage . | . . . Shots . | . . . Rammed . | . . . Targets Rammed . | . . . Kicked . | . . . Crushed . | . . . Highest Temperature 109 | 60 109 24 Average Temperature 34 | 27 41 9 Received Heat Transfer 294 | . 294 . Siege Activations . | . . . Martial Activations . | . . . Shielding Activations . | . . . Robots Disrupted . | . . . Combat Hostiles . | . . . Robots Corrupted . | . . . Combat Hostiles . | . . . Parts Fried . | . . . Impact Corruptions . | . . . Robots Melted . | . . . Combat Hostiles . | . . . Parts Melted 2 | 2 . . Heat Transferred 296 | 185 111 . Parts Sabotaged . | . . . Parts Stolen . | . . . Parts Stripped . | . . . Power Chain Reactions . | . . . Alert | -11 -10 -10 ------- Run | Yrd Mat Min Maximum Alert Level . | . . . Low Security (%) 100 | 100 100 100 Level 1 . | . . . Level 2 . | . . . Level 3 . | . . . Level 4 . | . . . Level 5 . | . . . High Security . | . . . Max Security . | . . . Peak Influence 138 | 10 138 24 Initial 24 | . . 24 Average 28 | 1 45 1 Influence Increases 425 | 15 410 . Destroy 0b10 Robot/C 220 | . 220 . Destroy 0b10 Robot/NC 20 | 15 5 . Destroy Leader 50 | . 50 . Successful Hack 13 | . 13 . Destroy Structure 2 | . 2 . Lose Combat Pursuer 120 | . 120 . Influence Decreases 425 | 15 347 63 Entered New Map 39 | . . 39 Time Decay 386 | 15 347 24 Squads Dispatched 1 | . 1 . Investigation . | . . . Extermination . | . . . Reinforcement 1 | . 1 . Assault . | . . . Garrison . | . . . Intercept . | . . . Searches Triggered . | . . . Construction Impeded . | . . . Haulers Reinforced . | . . . Active Scanning Responses . | . . . Cargo Convoy Interrupts . | . . . Stealth | -11 -10 -10 --------- Run | Yrd Mat Min Distress Signals 4 | . 4 . Communications Jammed . | . . . Distress Signals . | . . . Times Spotted 31 | . 30 1 Peak Tracking Total 7 | . 7 1 Tactical Retreats 5 | . 5 . Traps | -11 -10 -10 ------- Run | Yrd Mat Min Traps Triggered . | . . . Indirectly . | . . . Trap Hack Attempts . | . . . Triggered . | . . . Disarmed . | . . . Reprogrammed . | . . . Reused . | . . . Traps Extracted . | . . . Installed . | . . . Triggered . | . . . Machines | -11 -10 -10 ---------- Run | Yrd Mat Min Machines Disabled . | . . . Max in Single Turn . | . . . Machines Repaired . | . . . Machines Dismantled . | . . . Machines Sabotaged . | . . . Overloaded Fab Kills . | . . . Hacking | -11 -10 -10 --------- Run | Yrd Mat Min Machines Accessed 5 | . 5 . Terminals 5 | . 5 . Fabricators . | . . . Repair Stations . | . . . Recycling Units . | . . . Scanalyzers . | . . . Garrison Access . | . . . Total Hacks 9 | . 9 . Successful 6 | . 6 . Failed 3 | . 3 . Catastrophic . | . . . Database Lockouts . | . . . Manual 4 | . 4 . Terminals 9 | . 9 . Fabricators . | . . . Repair Stations . | . . . Recycling Units . | . . . Scanalyzers . | . . . Garrison Access . | . . . Terminal Hacks 3 | . 3 . Prototype ID Bank 1 | . 1 . Locate Traps 2 | . 2 . Fabricator Hacks . | . . . Repair Station Hacks . | . . . Recycling Unit Hacks . | . . . Scanalyzer . | . . . Garrison Access Hacks . | . . . Unauthorized Hacks 3 | . 3 . Terminals 3 | . 3 . Botnet 3 | . 3 . Fabricators . | . . . Repair Stations . | . . . Recycling Units . | . . . Scanalyzers . | . . . Garrison Access . | . . . Data Cores Recovered . | . . . Used . | . . . Hacking Detections 4 | . 4 . Full Trace Events . | . . . Feedback Events . | . . . Feedback Blocked . | . . . Robot Schematics Acquired . | . . . Robots Built . | . . . Authchips . | . . . Time . | . . . Total Robot Build Rating . | . . . Part Schematics Acquired . | . . . Parts Built . | . . . Authchips . | . . . Time . | . . . Total Part Build Rating . | . . . Part Studies Acquired . | . . . Parts Repaired . | . . . Time . | . . . Parts Recycled . | . . . Recycled Matter . | . . . Retrieved Matter . | . . . Retrieved Components . | . . . Parts Scanalyzed . | . . . Part Schematics Acquired . | . . . Parts Damaged . | . . . Bothacking | -11 -10 -10 ------------ Run | Yrd Mat Min Used RIF Installer . | . . . Robots Hacked . | . . . Non-combat . | . . . Combat . | . . . Robot Hacks Applied . | . . . Relay Couplers Released . | . . . Fabnet Peak Effective % . | . . . Robots Rewired . | . . . Allies Hacked . | . . . Hacks Repelled . | . . . Allies | -11 -10 -10 -------- Run | Yrd Mat Min Total Allies . | . . . Largest Group . | . . . Highest-Rated Group . | . . . Highest-Rated Ally . | . . . Total Orders . | . . . Ally Attacks . | . . . Total Damage . | . . . Kills . | . . . Allies Corrupted . | . . . Allies Melted . | . . . Intel | -11 -10 -10 ------- Run | Yrd Mat Min Active Infowar (turns) 1902 | 13 1243 646 Terrain 928 | 13 915 . Seismic 974 | . 328 646 Robot Analysis Total . | . . . Derelict Logs Recovered 1 | . . 1 Drone Launches . | . . . Drone Recoveries . | . . . Exploration | -11 -10 -10 ------------- Run | Yrd Mat Min Turns Passed 2159 | 130 1356 673 Spaces Moved 1001 | 60 662 279 Core 4 | 4 . . Treads 683 | 56 627 . Legs 314 | . 35 279 Wheels . | . . . Hover . | . . . Flight . | . . . Fastest Speed 50 | 50 160 190 Average Speed 169 | 152 163 190 Slowest Speed 330 | 160 330 190 Overloaded Moves . | . . . Propulsion Burnouts . | . . . Robots Hopped . | . . . Potential Cave-ins . | . . . Cave-ins Triggered . | . . . Exploration Rate (%) 45 | 5 83 47 Regions Visited 2 Branch Regions 1 Pre-discovered Areas . | . . . Known Exits Taken . | . . . Unknown Exits Taken 2 | 1 1 . Scrap Searched 1 | . . 1 Spaces Dug . | . . . Terrain Destroyed . | . . . Melee . | . . . Projectile . | . . . AOE . | . . . Terrain Rammed . | . . . Walls Destroyed . | . . . Machines Disabled . | . . . Actions | -11 -10 -10 --------- Run | Yrd Mat Min Total 1372 | 81 884 407 Wait 270 | 3 153 114 Move 999 | 59 661 279 Hop . | . . . Pick Up 21 | 4 17 . Fast Attach 9 | 7 2 . Attach 2 | . . 2 Detach . | . . . Swap 8 | . 6 2 Drop 10 | . 10 . Fire 53 | 8 35 10 Melee . | . . . Ram . | . . . Kick . | . . . Crush . | . . . Escape Stasis . | . . . Rewire . | . . . Trap . | . . . Miscellaneous . | . . . Route ------- -11/Scrapyard -10/Materials (discovered 3 exits: *Mat x2 / [*Min]) -10/Mines (discovered 1 exit: Mat) History --------- Turn | Location | Event 14 | -11/Scrapyard | Discovered new exit (range 15) 131 | -11/Scrapyard | Entered Materials 310 | -10/Materials | Build established: Mutant 435 | -10/Materials | Discovered new exit (range 5) 885 | -10/Materials | Discovered new exit (range 15) 1070 | -10/Materials | Discovered new exit (range 8) 1487 | -10/Materials | Entered Mines 1488 | -10/Mines | YI-UF0 nonchalantly dropped a Grenade Launcher on the ground 1540 | -10/Mines | Found a hidden stash of uninstalled traps 1613 | -10/Mines | Assembled infested the area 1618 | -10/Mines | Assisted by a Guerilla fighting off Assembled 1915 | -10/Mines | Identified exit to Materials 2142 | -10/Mines | Core integrity fell below 50% 2159 | -10/Mines | Core integrity fell below 20% 2160 | -10/Mines | Destroyed by YI-UF0 with YI-UF0's Doublenader Last Messages --------------- 01618_ A derelict emerges from the shadows: "You need to get out of here! I've been tracking a group of Assembled to figure out where they're coming from, and they're closing on this area, come on!" 01840_ K-01 Serf collects debris. 01915_ Acquired derelict log, extracted data. Loading 1 Mines exit... 01936_ The unstable cave ceiling collapses. 02132_ Autogun destroyed. 02140_ The unstable cave ceiling collapses. 02141_ Autogun destroyed. 02143_ YI-UF0 mumbles something. 02143_ The unstable cave ceiling collapses. 02144_ Lgt. Armor Plating destroyed. 02146_ The unstable cave ceiling collapses. 02156_ Aluminum Leg destroyed. 02157_ The unstable cave ceiling collapses. 02160_ Autogun destroyed. 02160_ Ion Engine destroyed. Map ----- +----------------------------------------------------+ | | | | | | | | | | | | | | | ?????????????????????????????????????????????????? | | ?????????????????????????????????????????????????? | | ?????????????????????????????????????????????????? | | ??????????????????????????????######?????????????? | | ???????????????????####???##### ##????????????? | | ??????????????????## ##??# ####?????????? | | ????????????##???## #??# ## ##????????? | | ???? #### ## #??# ## #????????? | | ????# #### # ## #????????? | | ?????# #### ##????????? | | #?????# ##] ### #???###?????????? | | #??????# ???????## ## ### #???????????????? | | #?????????????????####| ##???????????????? | | #????????????????????# % ####???????????????? | | #????????????????????# % #???????????????? | | #?????????##?????????# # #???????????### | | #??######## ########## #?????????## # | | #?## ## ## # #??####??## | | ### # ## @ ### #### | | # ### ## | | ### ## ## # | | # ## # # # # | | ## g ## ### ### | | # # ####?? | | # # ##????? | | ## # # # ### ###?????? | | # # ###### #####????? | | # ###????# #????? | | % #?????# #????? | | #####?????# ### #????? | | # = #?????????# ## ##?? #????? | | ## ## #?????????#& & #### #???? #????? | | ? ## ####?????????# & #??### ##???? ????? | | ?? #????????????## #????####??????" ???? | | ?? ####?????????????## #??????????????" "??? | | ?? ??????????????????## ##??????????????? ""?? | | ?? = ??????????????????## #???????????????? ? | | ?? ?????????????????## ##?????????????????"""? | | ?? ?????????????????# ##?????????????????????? | | ?????????????????????# #??????????????????????? | | ?????????????????????# ##??????????????????????? | | ?????????????????????# #???????????????????????? | | ?????????????????????# ##???????????????????????? | +----------------------------------------------------+ Best States ------------- Heat Dissipation 25 Energy Generation 10 Energy Capacity 250 Matter Stores 300 Matter Capacity 300 Sight Range 16 Terrain Scan Range 16 Terrain Scan Density 10 Armor Coverage 150 Evasion (%) 40 Recoil Reduction 2 Item Schematics ----------------- None Robot Schematics ------------------ None Fabricated ------------ Nothing Repaired ---------- Nothing Studied --------- None Alien Tech Used ----------------- None Achievements -------------- None Challenges ------------ None Game ------ Seed BlastLightSpoofer Manual? 0 Play Time 00:17:59 Cumulative 143.8 hours Start 2026.01.24 @ 11:47:19 End 2026.01.24 @ 12:10:14 Sessions 1 Manual Loads 0 Difficulty Rogue Special Mode None Game No. 88 Rogue 88 Adventurer 0 Explorer 0 Win Type - Total 0 Types 0/0/0/0/0/0/0/0/0/0 Lore% 54 Gallery% 45 Achievement% 25 Wizard Run 0 Options --------- Layout 1 ASCII 0 Keyboard 0 Movement Numpad Keybinds 0 Fullscreen 1 Font 24/Smallcaps Map View 50x35 Zoom Use 0% Tactical HUD 1 Map Filters NONE Filters NONE Steam 1 RUN: 75da3fd6-db22-4d8f-9638-5a0530a093ed